bitfinex-derivatives/quotes_BTCF0:USTF0_20241217
["timestamp","ask_amount","ask_price","bid_price","bid_amount"]
[1734461655336,0.89336157,106430.0,106420.0,6.9e-07]
[1734461655536,0.82730189,106430.0,106420.0,6.9e-07]
[1734461657735,0.44084221,106430.0,106420.0,6.9e-07]
[1734461658037,0.51710189,106430.0,106420.0,6.9e-07]
[1734461658536,0.51710189,106430.0,106420.0,0.04360069]
[1734461658940,0.44084221,106430.0,106420.0,0.09057669]
[1734461659156,0.38801366,106430.0,106420.0,0.09057669]
[1734461659439,0.51124534,106430.0,106420.0,0.04360069]
[1734461663342,2.01124534,106430.0,106420.0,0.04360069]
[1734461663841,0.51124534,106430.0,106420.0,0.04360069]
[1734461667145,2.01124534,106430.0,106420.0,0.04360069]
[1734461667947,0.51124534,106430.0,106420.0,0.04360069]
[1734461668347,2.01124534,106430.0,106420.0,0.04360069]
[1734461668847,0.51124534,106430.0,106420.0,0.04360069]
[1734461671644,0.51124534,106430.0,106420.0,6.9e-07]
[1734461671839,0.81124534,106430.0,106420.0,6.9e-07]
[1734461674350,0.81124534,106430.0,106400.0,0.3062]
[1734461674351,0.046981,106410.0,106400.0,0.3062]
[1734461674547,0.92110036,106410.0,106400.0,0.3062]
[1734461678338,0.84484068,106410.0,106400.0,0.3062]
[1734461679652,0.85819703,106410.0,106400.0,0.3062]
[1734461685449,0.85819703,106410.0,106400.0,0.2579]
[1734461685650,0.93445671,106410.0,106400.0,0.2579]
[1734461686252,2.43445671,106410.0,106400.0,0.2579]
[1734461687158,0.93445671,106410.0,106400.0,0.2579]
[1734461688851,0.21285671,106410.0,106400.0,0.2579]
[1734461689052,0.93445671,106410.0,106400.0,0.2579]
[1734461689748,0.95333608,106410.0,106400.0,0.2579]
[1734461692947,0.80081672,106410.0,106400.0,0.2579]
[1734461693144,0.768581,106410.0,106400.0,0.2579]
[1734461693350,0.329681,106410.0,106400.0,0.304885]
[1734461693550,0.40594068,106410.0,106400.0,0.304885]
[1734461693754,0.45292168,106410.0,106400.0,0.2579]
[1734461695665,0.52918136,106410.0,106400.0,0.2579]
[1734461696052,0.45292168,106410.0,106400.0,0.2579]
[1734461698655,0.52918136,106410.0,106400.0,0.2579]
[1734461698851,0.046989,106390.0,106370.0,0.0019102]
[1734461699051,0.56031336,106380.0,106370.0,0.0019102]
[1734461699250,2.06031336,106380.0,106370.0,0.0119102]
[1734461699460,0.50746571,106380.0,106370.0,0.0119102]
[1734461699651,0.43120603,106380.0,106370.0,0.0119102]
[1734461699847,0.43120603,106380.0,106370.0,0.0114102]
[1734461700763,0.43120603,106380.0,106370.0,0.0119102]
[1734461701855,0.43120603,106380.0,106370.0,0.0114102]
[1734461702054,0.43120603,106380.0,106370.0,0.0601102]
[1734461704365,0.046994,106380.0,106370.0,0.1071082]
[1734461704761,0.3608,106390.0,106380.0,0.046994]
[1734461704965,0.37939268,106410.0,106380.0,0.43705968]
[1734461705162,0.046987,106400.0,106390.0,0.153189]
[1734461709463,0.046987,106400.0,106390.0,0.1062]
[1734461710468,0.046987,106400.0,106390.0,0.153189]
[1734461711862,0.43879671,106410.0,106400.0,0.046985]
[1734461712162,0.43879671,106410.0,106400.0,0.094285]
[1734461713772,2.14665278,106430.0,106420.0,0.046976]
[1734461713974,1.78537278,106430.0,106420.0,0.046976]
[1734461714274,1.78537278,106430.0,106420.0,0.407776]
[1734461714468,1.78537278,106430.0,106420.0,0.3608]
[1734461714774,0.28487278,106430.0,106410.0,0.407778]
[1734461714975,0.29749965,106430.0,106420.0,0.0976]
[1734461715869,0.3608,106440.0,106420.0,0.0976]
[1734461716064,0.16440657,106500.0,106420.0,0.0976]
[1734461716271,1.51,106550.0,106500.0,0.08628935]
[1734461716576,0.3608,106530.0,106510.0,0.3708]
[1734461716774,0.3608,106540.0,106530.0,0.55992284]
[1734461716775,0.046923,106540.0,106530.0,0.55992284]
[1734461716962,0.42321235,106540.0,106530.0,3.13811056]
[1734461717166,0.42321235,106540.0,106530.0,1.36619185]
[1734461717369,0.44201836,106540.0,106530.0,1.58857549]
[1734461717569,0.44201836,106540.0,106530.0,0.20029188]
[1734461717570,0.49371836,106540.0,106530.0,0.20029188]
[1734461717763,0.30729876,106540.0,106530.0,0.11719188]
[1734461717969,0.66809876,106540.0,106530.0,0.40813535]
[1734461718177,0.66809876,106540.0,106530.0,0.00013535]
[1734461718474,0.046928,106530.0,106520.0,0.3608]
[1734461718676,0.17371735,106530.0,106520.0,0.3608]
[1734461718868,0.47371735,106530.0,106520.0,0.3608]
[1734461719067,0.046938,106510.0,106480.0,0.86260297]
[1734461719269,0.3608,106490.0,106470.0,0.18641994]
[1734461719571,0.3608,106500.0,106480.0,0.3608]
[1734461719776,0.70776,106510.0,106480.0,0.43708935]
[1734461719962,0.70776,106510.0,106500.0,0.33416964]
[1734461720361,0.83098535,106510.0,106500.0,0.33416964]
[1734461720764,0.01880601,106540.0,106500.0,1.14754834]
[1734461720963,0.01880601,106540.0,106530.0,0.63897471]
[1734461721175,0.01880601,106540.0,106530.0,0.69496964]
[1734461721471,0.056879,106550.0,106530.0,0.69496964]
[1734461721769,0.3608,106540.0,106530.0,0.2776451]
[1734461721972,0.48401235,106540.0,106520.0,0.2776451]
[1734461722167,0.48401735,106530.0,106520.0,0.2776451]
[1734461722370,0.48401735,106530.0,106510.0,0.2776451]
[1734461722371,0.046932,106520.0,106510.0,0.2776451]
[1734461722582,0.48402135,106520.0,106510.0,0.2776451]
[1734461722872,0.07628935,106500.0,106470.0,0.05160889]
[1734461723062,0.43708935,106480.0,106450.0,0.12818935]
[1734461723262,0.43708935,106480.0,106440.0,0.046966]
[1734461723263,0.40776,106460.0,106440.0,0.046966]
[1734461723486,0.3608,106450.0,106440.0,0.046966]
[1734461723772,0.407765,106450.0,106430.0,0.04697]
[1734461723974,0.3608,106440.0,106430.0,0.04697]
[1734461724278,0.3608,106440.0,106430.0,0.34697]
[1734461724673,0.046973,106430.0,106410.0,0.04838914]
[1734461724969,0.407773,106430.0,106410.0,0.04838914]
[1734461725279,0.5220947,106420.0,106410.0,0.00140914]
[1734461725470,0.5220947,106420.0,106410.0,0.22351233]
[1734461726275,0.5220947,106420.0,106410.0,0.39010573]
[1734461727277,0.5220947,106420.0,106410.0,0.22351233]
[1734461727483,0.407776,106420.0,106410.0,0.22351233]
[1734461727681,0.407776,106420.0,106410.0,0.00140914]
[1734461728081,0.04697,106440.0,106410.0,0.77660587]
[1734461728378,0.046976,106420.0,106410.0,0.00140914]
[1734461728582,0.3608,106430.0,106410.0,0.00140914]
[1734461728772,0.52216373,106440.0,106410.0,0.00140914]
[1734461728967,0.046976,106420.0,106410.0,0.00140914]
[1734461729473,0.3608,106420.0,106410.0,0.00140914]
[1734461729674,0.046976,106420.0,106410.0,0.00140914]
[1734461729874,0.407776,106420.0,106410.0,0.00140914]
[1734461730179,0.046981,106410.0,106400.0,0.1]
[1734461730673,0.046981,106410.0,106400.0,0.4608]
[1734461731068,0.046981,106410.0,106400.0,0.1]
[1734461731575,0.407781,106410.0,106400.0,0.1]
[1734461732676,0.407781,106410.0,106400.0,0.27455757]
[1734461732677,0.52217773,106410.0,106400.0,0.27455757]
[1734461732986,0.52227902,106410.0,106400.0,0.27455757]
[1734461733777,0.40788229,106410.0,106400.0,0.27455757]
[1734461733975,0.52227902,106410.0,106400.0,0.27455757]
[1734461734372,0.52227902,106410.0,106400.0,0.27660508]
[1734461734573,0.046973,106430.0,106410.0,0.04698]
[1734461734877,0.01993287,106450.0,106420.0,0.47519673]
[1734461735071,0.00140989,106450.0,106440.0,0.407767]
[1734461735277,0.00140989,106450.0,106440.0,0.99876881]
[1734461735477,0.3608,106480.0,106450.0,0.046961]
[1734461735775,0.046954,106470.0,106460.0,0.22252451]
[1734461735975,0.407754,106470.0,106460.0,0.22252451]
[1734461736380,0.52215073,106470.0,106460.0,0.16694118]
[1734461736685,0.52215073,106470.0,106460.0,7.753e-05]
[1734461736885,0.54090174,106470.0,106460.0,7.753e-05]
[1734461737191,0.42650501,106470.0,106460.0,7.753e-05]
[1734461737673,0.42650501,106470.0,106460.0,0.16694118]
[1734461740176,0.3614162,106480.0,106460.0,0.46694118]
[1734461740374,0.00140935,106490.0,106480.0,0.04695]
[1734461740580,0.00140935,106490.0,106480.0,0.40775]
[1734461740783,0.00190935,106490.0,106480.0,0.57015317]
[1734461741378,0.0005,106490.0,106480.0,0.57015317]
[1734461741573,0.0005,106490.0,106480.0,0.20935317]
[1734461741783,0.407745,106490.0,106480.0,0.16240317]
[1734461741981,0.407745,106490.0,106470.0,0.407753]
[1734461742187,0.407745,106490.0,106480.0,0.2227147]
[1734461742883,0.408245,106490.0,106480.0,0.2227147]
[1734461743873,0.407745,106490.0,106480.0,0.2227147]
[1734461744382,0.407745,106490.0,106480.0,0.05568806]
[1734461744580,0.00048,106500.0,106490.0,0.046945]
[1734461744883,8.869e-05,106510.0,106500.0,0.046941]
[1734461745184,8.869e-05,106510.0,106500.0,0.16133773]
[1734461745884,8.869e-05,106510.0,106500.0,0.046941]
[1734461746084,0.01882616,106510.0,106500.0,0.21393179]
[1734461746282,0.01882616,106510.0,106500.0,0.046941]
[1734461746873,0.06576216,106510.0,106500.0,0.046941]
[1734461747073,0.06576216,106510.0,106500.0,0.16699244]
[1734461747278,0.01882616,106510.0,106500.0,0.21393344]
[1734461747483,8.869e-05,106510.0,106500.0,0.407741]
[1734461747788,8.869e-05,106510.0,106500.0,0.52213773]
[1734461749580,8.869e-05,106510.0,106500.0,0.52225177]
[1734461749779,0.0165063,106510.0,106500.0,0.52225177]
[1734461750088,0.00058869,106510.0,106500.0,0.52225177]
[1734461752782,0.04752469,106510.0,106500.0,0.52225177]
[1734461754087,0.00058869,106510.0,106500.0,0.52225177]
[1734461756290,0.06566184,106530.0,106520.0,0.046932]
[1734461756478,0.06566184,106530.0,106520.0,0.407732]
[1734461756679,0.06566184,106530.0,106520.0,0.046932]
[1734461756886,0.42646184,106530.0,106520.0,0.046932]
[1734461757382,0.04693,106530.0,106520.0,0.407732]
[1734461758285,0.04693,106530.0,106520.0,0.046932]
[1734461761991,0.04743,106530.0,106520.0,0.046932]
[1734461762191,0.0005,106530.0,106520.0,0.16132873]
[1734461762397,0.0005,106530.0,106520.0,0.52212873]
[1734461762598,0.04700002,106540.0,106530.0,0.046928]
[1734461763493,7.702e-05,106540.0,106530.0,0.16132473]
[1734461763797,0.00057702,106540.0,106530.0,0.52212473]
[1734461764298,0.00057702,106540.0,106530.0,0.80044838]
[1734461764992,7.702e-05,106540.0,106530.0,0.80044838]
[1734461765894,0.00057702,106540.0,106530.0,0.80044838]
[1734461766196,0.3608,106570.0,106550.0,0.046919]
[1734461766383,0.00052001,106580.0,106570.0,0.04691]
[1734461766583,0.046903,106590.0,106570.0,0.38884449]
[1734461766786,0.407703,106590.0,106580.0,0.046902]
[1734461767195,0.046901,106590.0,106580.0,0.05702179]
[1734461767393,0.52209773,106590.0,106580.0,0.01011979]
[1734461767595,0.456401,106590.0,106580.0,0.01011979]
[1734461770093,0.50818,106600.0,106580.0,0.05702579]
[1734461770293,0.5077,106600.0,106590.0,0.046901]
[1734461771690,0.5077,106600.0,106580.0,0.41782379]
[1734461771890,0.407701,106590.0,106580.0,0.05702379]
[1734461772103,0.4608,106600.0,106580.0,0.01011979]
[1734461772401,0.507698,106600.0,106590.0,0.046901]
[1734461772605,0.1,106600.0,106590.0,0.52209773]
[1734461773306,0.1,106600.0,106590.0,0.407701]
[1734461773712,0.05,106600.0,106590.0,0.52209773]
[1734461774587,0.05,106600.0,106590.0,0.16129773]
[1734461774786,0.05,106600.0,106580.0,0.01011979]
[1734461774787,0.046901,106590.0,106580.0,0.01011979]
[1734461774992,0.62419773,106590.0,106580.0,0.01011979]
[1734461775803,0.046914,106560.0,106550.0,0.32738359]
[1734461776013,0.3608,106560.0,106550.0,0.0583236]
[1734461776193,0.3608,106560.0,106550.0,0.33738359]
[1734461776799,0.407714,106560.0,106550.0,0.33749907]
[1734461776995,0.407714,106560.0,106550.0,0.05843908]
[1734461777791,0.407714,106560.0,106550.0,0.33749907]
[1734461778499,0.407714,106560.0,106550.0,0.05843908]
[1734461779599,0.3608,106560.0,106550.0,0.4518958]
[1734461779916,0.40771,106570.0,106560.0,0.046914]
[1734461780996,0.046914,106560.0,106550.0,0.33750107]
[1734461781198,0.407714,106560.0,106550.0,0.33609347]
[1734461781608,0.407714,106560.0,106550.0,0.4504902]
[1734461782301,0.407711,106570.0,106560.0,0.046914]
[1734461783198,0.00140779,106590.0,106580.0,0.046906]
[1734461783396,0.00140779,106590.0,106580.0,0.44065074]
[1734461783598,0.36220779,106590.0,106580.0,0.27934801]
[1734461783802,0.40910879,106590.0,106580.0,0.046906]
[1734461784702,0.40910879,106590.0,106570.0,0.28934801]
[1734461784703,0.3608,106590.0,106570.0,0.28934801]
[1734461784906,0.407706,106580.0,106570.0,0.01]
[1734461785114,0.459106,106580.0,106570.0,0.01]
[1734461785321,0.57350273,106580.0,106550.0,0.32778921]
[1734461785608,0.768514,106560.0,106550.0,0.28087121]
[1734461785808,0.768514,106560.0,106550.0,0.0115232]
[1734461786205,0.768514,106560.0,106550.0,0.28946349]
[1734461786411,0.768514,106560.0,106550.0,0.01011548]
[1734461787097,0.768514,106560.0,106550.0,0.67037087]
[1734461787304,0.768514,106560.0,106550.0,0.39102286]
[1734461789309,0.7216,106560.0,106550.0,0.50541959]
[1734461789498,0.7216,106560.0,106550.0,0.17143121]
[1734461790398,0.459108,106580.0,106570.0,0.04691]
[1734461790606,0.459108,106580.0,106570.0,0.39279078]
[1734461790911,0.459108,106580.0,106570.0,0.34588078]
[1734461792108,0.57350473,106580.0,106570.0,0.34588078]
[1734461792303,0.57350473,106580.0,106570.0,0.29007691]
[1734461792508,0.57350473,106580.0,106570.0,0.20577691]
[1734461792707,0.87350473,106580.0,106570.0,0.20577691]
[1734461793515,0.57350473,106580.0,106570.0,0.20577691]
[1734461793712,0.459108,106580.0,106570.0,0.20577691]
[1734461794119,0.046923,106540.0,106510.0,0.43799625]
[1734461794308,0.407732,106520.0,106510.0,0.01]
[1734461794512,0.407732,106520.0,106500.0,0.39965311]
[1734461794814,0.407736,106510.0,106500.0,0.01]
[1734461795007,0.52213273,106510.0,106500.0,0.01]
[1734461795213,0.52213273,106510.0,106500.0,0.01009838]
[1734461798622,0.11439673,106480.0,106460.0,0.101857]
[1734461798817,0.046954,106470.0,106460.0,0.462657]
[1734461799415,0.046954,106470.0,106460.0,0.101857]
[1734461799723,0.16135073,106470.0,106460.0,0.36084955]
[1734461799926,0.16135073,106470.0,106460.0,4.955e-05]
[1734461800109,0.52215073,106470.0,106460.0,4.955e-05]
[1734461803728,0.407754,106470.0,106460.0,4.955e-05]
[1734461804026,0.046954,106470.0,106460.0,4.955e-05]
[1734461804328,0.046963,106450.0,106440.0,0.04986963]
[1734461804511,0.046963,106450.0,106410.0,0.56020523]
[1734461804512,0.046976,106420.0,106410.0,0.00140933]
[1734461804712,0.88297273,106420.0,106410.0,0.00140933]
[1734461805521,0.88297273,106420.0,106400.0,0.1]
[1734461805724,0.52217773,106410.0,106400.0,0.1]
[1734461806043,0.046985,106400.0,106390.0,0.01]
[1734461806211,0.52218173,106400.0,106390.0,0.01]
[1734461808525,2.02218173,106400.0,106390.0,0.01]
[1734461809728,0.52218173,106400.0,106390.0,0.01]
[1734461809928,0.407785,106400.0,106390.0,0.0105]
[1734461810424,0.046981,106410.0,106390.0,0.418288]
[1734461810630,0.046985,106400.0,106390.0,0.3713]
[1734461811114,0.407785,106400.0,106390.0,0.0105]
[1734461814328,0.046983,106410.0,106390.0,0.418289]
[1734461814523,0.046983,106410.0,106390.0,0.057489]
[1734461814725,0.407783,106410.0,106390.0,0.057489]
[1734461814927,0.454768,106410.0,106390.0,0.057489]
[1734461815228,0.046985,106400.0,106390.0,0.057489]
[1734461815617,0.046985,106400.0,106390.0,0.418289]
[1734461816430,0.046981,106410.0,106400.0,0.046985]
[1734461816637,0.046981,106410.0,106400.0,0.407785]
[1734461817427,0.046985,106400.0,106390.0,0.0105]
[1734461818130,0.046985,106400.0,106390.0,0.057489]
[1734461818322,0.046982,106410.0,106400.0,0.046985]
[1734461818530,0.407777,106420.0,106410.0,0.046981]
[1734461819231,0.046977,106420.0,106410.0,0.046981]
[1734461819429,0.40927299,106430.0,106420.0,0.046976]
[1734461819634,0.04847299,106430.0,106420.0,0.046976]
[1734461819827,0.04847299,106430.0,106420.0,0.407776]
[1734461820129,0.04847299,106430.0,106420.0,0.046976]
[1734461820830,0.04706277,106430.0,106420.0,0.046976]
[1734461821041,0.04706277,106430.0,106420.0,0.407776]
[1734461824034,8.977e-05,106430.0,106420.0,0.52217273]
[1734461824236,0.046965,106450.0,106440.0,0.046967]
[1734461824540,0.04836867,106460.0,106450.0,0.046963]
[1734461824734,0.00140967,106460.0,106450.0,0.52215973]
[1734461825038,0.046972,106430.0,106420.0,0.41278161]
[1734461825236,0.046972,106430.0,106420.0,0.36088161]
[1734461825435,0.046972,106430.0,106420.0,0.40785761]
[1734461825845,0.046972,106430.0,106420.0,0.52225434]
[1734461827133,0.046972,106430.0,106420.0,8.161e-05]
[1734461827647,0.407772,106430.0,106420.0,8.161e-05]
[1734461828233,0.462172,106430.0,106420.0,8.161e-05]
[1734461829044,0.87656873,106430.0,106420.0,6.1e-07]
[1734461829340,0.046985,106410.0,106390.0,0.12439673]
[1734461829647,0.515173,106430.0,106400.0,0.52218173]
[1734461829648,0.509148,106430.0,106400.0,0.52218173]
[1734461829845,0.046978,106420.0,106410.0,0.16137773]
[1734461830547,0.046978,106420.0,106410.0,0.046981]
[1734461832238,0.407774,106430.0,106410.0,0.046981]
[1734461833144,0.407774,106430.0,106410.0,0.16137773]
[1734461833541,0.407774,106430.0,106410.0,0.39304129]
[1734461833848,0.407774,106430.0,106420.0,0.046976]
[1734461834742,0.4266356,106430.0,106420.0,0.046976]
[1734461834935,0.407769,106440.0,106420.0,0.11439673]
[1734461835133,0.3608,106450.0,106430.0,0.52216873]
[1734461835342,0.40834543,106460.0,106450.0,0.046963]
[1734461835741,0.40834543,106460.0,106430.0,0.40339724]
[1734461835942,0.3608,106450.0,106440.0,0.046964]
[1734461837946,0.36088543,106460.0,106450.0,0.046963]
[1734461839047,0.40834343,106460.0,106450.0,0.046963]
[1734461840935,0.40784343,106460.0,106450.0,0.046963]
[1734461841838,0.36088543,106460.0,106450.0,0.046963]
[1734461842038,8.543e-05,106460.0,106450.0,0.52215973]
[1734461842343,0.0005,106470.0,106460.0,0.046958]
[1734461842646,0.0005,106470.0,106460.0,0.80212168]
[1734461843049,0.04695,106480.0,106470.0,0.046954]
[1734461843345,0.04695,106480.0,106470.0,0.04704759]
[1734461843557,0.462548,106490.0,106480.0,0.04695]
[1734461844344,0.50924092,106500.0,106490.0,0.046945]
[1734461845448,0.52798945,106500.0,106490.0,0.046945]
[1734461845851,0.10149992,106500.0,106490.0,0.52214173]
[1734461846045,0.05149992,106500.0,106490.0,0.80210868]
[1734461846244,0.00199992,106500.0,106490.0,0.80210868]
[1734461846440,0.00199992,106500.0,106490.0,0.80144245]
[1734461847336,0.4083316,106500.0,106490.0,0.046945]
[1734461847542,0.4083316,106500.0,106480.0,1.02323795]
[1734461847740,0.046945,106490.0,106480.0,0.32624672]
[1734461847941,0.047445,106490.0,106480.0,0.32624672]
[1734461848951,0.046945,106490.0,106480.0,0.32624672]
[1734461849347,0.4278906,106500.0,106490.0,0.046945]
[1734461849552,0.0005906,106500.0,106490.0,0.52214173]
[1734461849755,0.0005906,106500.0,106490.0,0.80144245]
[1734461849957,0.0005906,106500.0,106490.0,0.64765654]
[1734461850249,0.0005906,106500.0,106490.0,0.69460154]
[1734461850459,0.0005906,106500.0,106490.0,0.41530082]
[1734461850646,0.0005906,106500.0,106490.0,0.407745]
[1734461850846,0.0475316,106500.0,106490.0,0.046945]
[1734461851058,0.4083316,106500.0,106490.0,0.046945]
[1734461852046,0.046945,106490.0,106480.0,0.32624772]
[1734461852256,0.04695,106480.0,106470.0,0.27939431]
[1734461852443,0.40775,106480.0,106470.0,0.27939431]
[1734461852649,0.40775,106480.0,106470.0,9.359e-05]
[1734461854059,0.40775,106480.0,106470.0,0.04704759]
[1734461855264,0.40775,106480.0,106470.0,9.359e-05]
[1734461855557,0.52214673,106480.0,106470.0,9.359e-05]
[1734461856250,0.046955,106470.0,106440.0,0.39369745]
[1734461856549,0.407761,106460.0,106450.0,0.046962]
[1734461858052,0.472161,106460.0,106440.0,0.27930072]
[1734461858251,0.472161,106460.0,106440.0,0.32626572]
[1734461859151,0.046963,106450.0,106440.0,0.32626572]
[1734461859559,0.046963,106450.0,106440.0,0.38315623]
[1734461859951,0.407763,106450.0,106440.0,0.27944266]
[1734461860459,0.407763,106450.0,106440.0,0.38315823]
[1734461860850,0.407763,106450.0,106440.0,0.33619123]
[1734461861049,0.407763,106450.0,106440.0,0.38315823]
[1734461861245,0.407763,106450.0,106440.0,0.33619123]
[1734461861450,0.407763,106450.0,106440.0,0.61580181]
[1734461861656,0.407763,106450.0,106440.0,0.27961058]
[1734461862450,0.407763,106450.0,106430.0,0.88744909]
[1734461862650,0.3608,106440.0,106430.0,0.88744909]
[1734461862955,0.407767,106440.0,106430.0,0.88744909]
[1734461863150,0.407767,106440.0,106430.0,0.43919411]
[1734461863347,0.3608,106450.0,106430.0,0.16136773]
[1734461863558,0.3608,106450.0,106440.0,0.55358684]
[1734461863759,0.47216,106460.0,106450.0,0.046963]
[1734461863954,0.47216,106460.0,106450.0,0.43857231]
[1734461864662,0.47216,106460.0,106450.0,0.5926573]
[1734461865251,0.47216,106460.0,106450.0,0.20104799]
[1734461865652,0.47216,106460.0,106450.0,0.20159861]
[1734461865853,0.37962257,106480.0,106470.0,0.046954]
[1734461866072,0.37962257,106480.0,106470.0,0.53741002]
[1734461866073,0.42657357,106480.0,106470.0,0.53741002]
[1734461866252,0.06577357,106480.0,106470.0,0.056954]
[1734461866560,0.42657357,106480.0,106470.0,0.056954]
[1734461867054,0.42657357,106480.0,106470.0,0.01]
[1734461867659,0.42657357,106480.0,106470.0,0.44856331]
[1734461868361,0.42930939,106490.0,106470.0,0.92376004]
[1734461868564,0.36220939,106490.0,106480.0,0.43855931]
[1734461869462,0.36220939,106490.0,106480.0,0.88681429]
[1734461869463,0.40915439,106490.0,106480.0,0.88681429]
[1734461869665,0.40915439,106490.0,106480.0,0.43855931]
[1734461870368,0.40915439,106490.0,106480.0,0.38276174]
[1734461872064,0.40915439,106490.0,106480.0,0.33581174]
[1734461872271,0.40915439,106490.0,106480.0,0.38276174]
[1734461872958,0.40915439,106490.0,106480.0,0.33581174]
[1734461874165,0.52355112,106490.0,106480.0,0.33581174]
[1734461874359,0.49825439,106490.0,106480.0,0.61569209]
[1734461874554,0.59505439,106490.0,106480.0,0.33581174]
[1734461874764,2.09505439,106490.0,106480.0,0.33581174]
[1734461875161,0.59505439,106490.0,106480.0,0.61571437]
[1734461875363,0.59505439,106490.0,106480.0,0.27990263]
[1734461876362,0.59505439,106490.0,106480.0,0.33581174]
[1734461876866,0.59505439,106490.0,106480.0,0.38276174]
[1734461876867,0.40915439,106490.0,106480.0,0.38276174]
[1734461877066,0.40915439,106490.0,106480.0,0.38298344]
[1734461877273,0.40915439,106490.0,106480.0,0.04695]
[1734461880970,0.04695,106480.0,106470.0,0.40160931]
[1734461881165,0.40775,106480.0,106470.0,0.01]
[1734461882374,0.56012114,106480.0,106470.0,0.01]
[1734461882672,0.12313957,106470.0,106460.0,0.49253263]
[1734461882870,0.48393957,106470.0,106460.0,0.49264574]
[1734461883266,0.48393957,106470.0,106460.0,0.3364681]
[1734461883570,0.48393957,106470.0,106460.0,0.49264574]
[1734461883966,0.407754,106470.0,106460.0,0.49264574]
[1734461885675,0.407754,106470.0,106460.0,0.15617764]
[1734461885872,0.407754,106470.0,106460.0,0.49262649]
[1734461886371,0.407754,106470.0,106460.0,0.15617764]
[1734461886571,0.407754,106470.0,106460.0,0.33644649]
[1734461886772,0.407754,106470.0,106460.0,0.046958]
[1734461886973,0.40775,106480.0,106470.0,0.046954]
[1734461887175,0.04835439,106490.0,106480.0,0.04695]
[1734461887176,0.40915539,106490.0,106480.0,0.04695]
[1734461887471,0.40915539,106490.0,106480.0,0.43855931]
[1734461888064,0.40915539,106490.0,106480.0,0.04695]
[1734461888477,0.04695,106480.0,106470.0,0.43856231]
[1734461888664,0.36220939,106490.0,106480.0,0.04695]
[1734461888864,0.36220939,106490.0,106480.0,0.52729038]
[1734461889168,0.00140939,106490.0,106480.0,1.15101584]
[1734461889370,0.00140939,106490.0,106480.0,0.88121584]
[1734461889566,0.00140939,106490.0,106480.0,1.12770498]
[1734461891273,0.04835439,106490.0,106480.0,1.12770498]
[1734461891574,0.40915439,106490.0,106480.0,0.44825498]
[1734461891777,0.40915439,106490.0,106480.0,0.39237636]
[1734461892274,0.52346525,106490.0,106480.0,0.39237636]
[1734461893667,0.40915439,106490.0,106480.0,0.39237636]
[1734461897672,0.40915439,106490.0,106470.0,0.84063134]
[1734461897873,0.40775,106480.0,106470.0,0.84063134]
[1734461898373,0.40775,106480.0,106470.0,0.39291342]
[1734461898581,0.40775,106480.0,106470.0,0.44825498]
[1734461899468,0.40775,106480.0,106470.0,0.84116848]
[1734461899880,0.40775,106480.0,106470.0,0.61423041]
[1734461900074,0.40775,106480.0,106470.0,0.44825498]
[1734461900378,0.40775,106480.0,106470.0,0.43988151]
[1734461900580,0.04695,106480.0,106470.0,0.66118441]
[1734461901371,0.40775,106480.0,106470.0,0.66118441]
[1734461902187,0.04695,106480.0,106470.0,0.66118441]
[1734461902679,0.36220939,106490.0,106470.0,1.0024794]
[1734461902886,0.3613906,106500.0,106480.0,0.55422042]
[1734461903181,0.3608,106510.0,106490.0,1.3632704]
[1734461903379,0.3608,106510.0,106500.0,0.43980527]
[1734461903572,0.407736,106510.0,106500.0,0.43980527]
[1734461903969,0.407736,106510.0,106500.0,0.39286427]
[1734461904180,0.407736,106510.0,106500.0,0.39295249]
[1734461905185,0.407736,106510.0,106500.0,0.43989349]
[1734461905477,0.3608,106510.0,106500.0,0.43989349]
[1734461906074,0.42666119,106520.0,106500.0,0.84763049]
[1734461906270,0.42666119,106520.0,106510.0,0.43980027]
[1734461906581,0.06586119,106520.0,106510.0,0.43980027]
[1734461906779,0.42666119,106520.0,106510.0,0.43980027]
[1734461908375,0.42666119,106520.0,106510.0,0.046936]
[1734461908881,0.49974755,106530.0,106520.0,0.046932]
[1734461909081,0.40924755,106530.0,106520.0,0.45924847]
[1734461909277,0.40924755,106530.0,106520.0,0.12305459]
[1734461909477,0.40924755,106530.0,106520.0,0.45913455]
[1734461909779,0.40924755,106530.0,106520.0,0.046932]
[1734461910179,0.40974755,106530.0,106520.0,0.046932]
[1734461910486,0.40974755,106530.0,106520.0,0.38294188]
[1734461910686,0.40974755,106530.0,106520.0,0.046932]
[1734461911485,0.40974755,106530.0,106520.0,0.16107796]
[1734461912190,0.40924755,106530.0,106520.0,0.4970577]
[1734461912394,0.4278298,106530.0,106520.0,0.4970577]
[1734461912583,0.4278298,106530.0,106520.0,0.49699271]
[1734461912976,0.4278298,106530.0,106520.0,0.16107796]
[1734461914275,0.36231755,106530.0,106520.0,0.16107796]
[1734461914480,0.00151755,106530.0,106520.0,0.91385432]
[1734461914689,0.00010886,106530.0,106520.0,1.09435432]
[1734461915091,0.00010886,106530.0,106520.0,1.20850028]
[1734461915287,0.01046,106540.0,106530.0,0.046928]
[1734461915595,0.057383,106540.0,106530.0,0.046928]
[1734461916377,0.057383,106540.0,106530.0,0.38279882]
[1734461917193,0.407723,106540.0,106530.0,0.33587082]
[1734461917384,0.407723,106540.0,106530.0,0.38279882]
[1734461917982,0.407723,106540.0,106530.0,0.33587082]
[1734461918491,0.407723,106540.0,106520.0,0.38280282]
[1734461918700,0.046928,106530.0,106520.0,0.38280282]
[1734461919094,0.3608,106540.0,106520.0,0.38280282]
[1734461919295,0.407726,106540.0,106520.0,0.38280282]
[1734461919493,0.407726,106540.0,106530.0,0.49694478]
[1734461919494,0.3608,106540.0,106530.0,0.49694478]
[1734461920192,0.37986526,106550.0,106540.0,0.046923]
[1734461920193,0.3613,106550.0,106540.0,0.046923]
[1734461920391,0.3613,106550.0,106540.0,0.49679679]
[1734461920590,0.0005,106550.0,106540.0,0.49679679]
[1734461920985,0.0005,106550.0,106540.0,0.85771526]
[1734461921186,0.49981,106570.0,106550.0,0.093835]
[1734461921187,0.04691,106570.0,106550.0,0.093835]
[1734461921386,0.04691,106570.0,106560.0,0.046911]
[1734461921585,0.04691,106570.0,106550.0,0.38226056]
[1734461921586,0.046918,106560.0,106550.0,0.38226056]
[1734461921787,0.046919,106550.0,106540.0,0.38238403]
[1734461921999,0.407719,106550.0,106540.0,0.38238403]
[1734461922297,0.408219,106550.0,106540.0,0.38238403]
[1734461922698,0.047419,106550.0,106540.0,0.38238403]
[1734461923195,0.046919,106550.0,106540.0,0.38238403]